[Event "23rd ETCC Women 2021"]
[Site "Catez"]
[Date "2021.11.20"]
[Round "8.16"]
[White "Beydullayeva, Govhar"]
[Black "Mihok-Juhasz, Barbara"]
[Result "1-0"]
[ECO "E90"]
[WhiteElo "2278"]
[BlackElo "2258"]
[Annotator "NA"]
[PlyCount "77"]
[EventDate "2021.11.08"]
[EventType "team-tourn"]
[EventCountry "SLO"]
[SourceTitle "playchess.com"]
[Source "ChessBase"]
[SourceQuality "1"]
[WhiteTeam "Azerbaijan"]
[BlackTeam "Hungary"]
[WhiteTeamCountry "AZE"]
[BlackTeamCountry "HUN"]
[TimeControl "40/5400+30:1800+30"]

1. d4 {[%emt 0:00:04]} Nf6 {[%emt 0:00:08]} 2. c4 {[%emt 0:00:04]} g6 {[%emt 0:
00:05]} 3. Nc3 {[%emt 0:00:07]} Bg7 {[%emt 0:00:04]} 4. e4 {[%emt 0:00:05]} d6
{[%emt 0:00:04]} 5. h3 {[%emt 0:00:08]} e5 {[%emt 0:00:06]} 6. d5 {[%emt 0:00:
06]} a5 {[%emt 0:00:05]} 7. Be3 {[%emt 0:00:06]} Na6 {[%emt 0:00:05]} 8. Nf3 {
[%emt 0:00:04]} O-O {[%emt 0:00:06]} 9. g4 {[%emt 0:03:09]} Nd7 {[%emt 0:00:05]
} 10. a3 {[%emt 0:09:30]} Nb6 {[%emt 0:00:07]} 11. Nd2 {[%emt 0:05:49]} Bd7 {
[%emt 0:08:22]} 12. Be2 {[%emt 0:00:58]} Nc5 {[%emt 0:01:01]} 13. b4 {[%emt 0:
08:10]} axb4 {[%emt 0:01:02]} 14. axb4 {[%emt 0:00:07]} Nca4 {[%emt 0:10:26]}
15. Nxa4 {[%emt 0:08:56]} Nxa4 {[%emt 0:03:10]} 16. Qc2 {[%emt 0:04:33]} f5 {
[%emt 0:13:47]} 17. f3 {[%emt 0:09:59]} Bh6 {[%emt 0:02:19]} 18. Bf2 {[%emt 0:
02:57]} fxe4 {[%emt 0:30:02]} 19. Nxe4 {[%emt 0:00:28]} c6 {[%emt 0:00:14]} 20.
O-O {[%emt 0:07:39]} Qe7 {[%emt 0:04:22]} 21. b5 {[%emt 0:07:17]} Nc5 {[%emt 0:
00:36]} 22. Nxc5 {[%emt 0:04:02]} dxc5 {[%emt 0:00:08]} 23. dxc6 {[%emt 0:00:
07]} bxc6 {[%emt 0:00:21]} 24. b6 {[%emt 0:00:59]} Rxa1 {[%emt 0:09:44]} 25.
Rxa1 {[%emt 0:00:05]} Rb8 {[%emt 0:02:20]} 26. Ra7 {[%emt 0:01:44]} Qe8 {
[%emt 0:10:17]} 27. Bxc5 {[%emt 0:01:01]} Bg5 {[%emt 0:00:12]} 28. Qd3 {
[%emt 0:04:37]} Bc8 {[%emt 0:01:27]} 29. Qd6 {[%emt 0:04:44]} Rb7 {[%emt 0:00:
03]} 30. Rxb7 {[%emt 0:01:33]} Bxb7 {[%emt 0:00:05]} 31. Qc7 {[%emt 0:00:48]}
Qf7 {[%emt 0:00:47]} 32. Qb8+ {[%emt 0:03:52]} Kg7 {[%emt 0:00:06]} 33. Qxe5+ {
[%emt 0:00:53]} Bf6 {[%emt 0:00:04]} 34. Qe4 {[%emt 0:00:36]} Qd7 {[%emt 0:00:
43]} 35. f4 {[%emt 0:03:04]} Qd2 {[%emt 0:02:36]} 36. g5 {[%emt 0:03:58]} Bxg5
{[%emt 0:00:09]} 37. Bd4+ {[%emt 0:00:04]} Bf6 {[%emt 0:00:16]} 38. Qe7+ {
[%emt 0:00:05]} Kg8 {[%emt 0:00:24]} 39. Qe6+ {[%emt 0:00:05]} 1-0

[Event "23rd ETCC Women 2021"]
[Site "Catez"]
[Date "2021.11.20"]
[Round "8.17"]
[White "Sebag, Marie"]
[Black "Bulmaga, Irina"]
[Result "1-0"]
[ECO "C88"]
[WhiteElo "2447"]
[BlackElo "2405"]
[Annotator "ChessBase"]
[PlyCount "145"]
[EventDate "2021.11.08"]
[EventType "team-tourn"]
[EventCountry "SLO"]
[SourceTitle "playchess.com"]
[Source "ChessBase"]
[SourceQuality "1"]
[WhiteTeam "France"]
[BlackTeam "Romania"]
[WhiteTeamCountry "FRA"]
[BlackTeamCountry "ROU"]
[TimeControl "40/5400+30:1800+30"]

1. e4 {[%emt 0:00:04]} e5 {[%emt 0:00:08]} 2. Nf3 {[%emt 0:00:06]} Nc6 {
[%emt 0:00:08]} 3. Bb5 {[%emt 0:00:05]} a6 {[%emt 0:00:07]} 4. Ba4 {[%emt 0:00:
11]} Nf6 {[%emt 0:00:09]} 5. O-O {[%emt 0:00:06]} b5 {[%emt 0:00:14]} 6. Bb3 {
[%emt 0:00:15]} Be7 {[%emt 0:00:10]} 7. Re1 {[%emt 0:01:15]} O-O {[%emt 0:00:
13]} 8. a4 {[%emt 0:01:19]} b4 {[%emt 0:00:25]} 9. d3 {[%emt 0:01:32]} d6 {
[%emt 0:00:38]} 10. a5 {[%emt 0:07:49]} Bg4 {[%emt 0:03:04]} 11. c3 {[%emt 0:
03:57]} bxc3 {[%emt 0:00:33]} 12. bxc3 {[%emt 0:00:10]} Rb8 {[%emt 0:01:20]}
13. Nbd2 {[%emt 0:09:16]} Qc8 {[%emt 0:07:06]} 14. h3 {[%emt 0:06:45]} Be6 {
[%emt 0:11:41]} 15. Nc4 {[%emt 0:19:55]} h6 {[%emt 0:15:20]} 16. Ba4 {[%emt 0:
02:30]} Nd8 {[%emt 0:07:14]} 17. Nfd2 {[%emt 0:07:41]} Nh7 {[%emt 0:03:22]} 18.
d4 {[%emt 0:05:33]} exd4 {[%emt 0:16:40]} 19. cxd4 {[%emt 0:01:35]} Bf6 {
[%emt 0:01:24]} 20. e5 {[%emt 0:00:53]} dxe5 {[%emt 0:01:20]} 21. Ba3 {[%emt 0:
06:03]} exd4 {[%emt 0:04:27]} 22. Bxf8 {[%emt 0:00:53]} Nxf8 {[%emt 0:00:10]}
23. Ne4 {[%emt 0:01:31]} Be7 {[%emt 0:08:16]} 24. Qxd4 {[%emt 0:02:44]} Rb4 {
[%emt 0:00:18]} 25. Ned2 {[%emt 0:01:39]} Nb7 {[%emt 0:03:55]} 26. Qc3 {
[%emt 0:04:03]} c5 {[%emt 0:01:55]} 27. Nb6 {[%emt 0:01:24]} Qc7 {[%emt 0:02:
20]} 28. Rac1 {[%emt 0:01:02]} Qf4 {[%emt 0:00:40]} 29. Bb3 {[%emt 0:04:01]}
Bf6 {[%emt 0:01:58]} 30. Qc2 {[%emt 0:03:55]} Bd4 {[%emt 0:00:55]} 31. Re2 {
[%emt 0:04:42]} Bxb3 {[%emt 0:06:33]} 32. Nxb3 {[%emt 0:00:07]} Rxb3 {[%emt 0:
00:15]} 33. Nd5 {[%emt 0:00:43]} Qg5 {[%emt 0:00:43]} 34. Ne7+ {[%emt 0:01:46]}
Kh8 {[%emt 0:00:08]} 35. h4 {[%emt 0:00:10]} Qg3 {[%emt 0:02:08]} 36. Nf5 {
[%emt 0:00:49]} Qc3 {[%emt 0:02:00]} 37. Qxc3 {[%emt 0:01:16]} Rxc3 {[%emt 0:
00:09]} 38. Rxc3 {[%emt 0:00:30]} Bxc3 {[%emt 0:00:03]} 39. Re8 {[%emt 0:00:04]
} Nxa5 {[%emt 0:00:59]} 40. Rxf8+ {[%emt 0:00:28]} Kh7 {[%emt 0:00:01]} 41. Ra8
{[%emt 0:31:12]} Bf6 {[%emt 0:13:11]} 42. h5 {[%emt 0:00:00]} Nb3 {[%emt 0:06:
07]} 43. Rxa6 {[%emt 0:00:00]} c4 {[%emt 0:01:29]} 44. Rc6 {[%emt 0:00:00]} c3
{[%emt 0:00:25]} 45. Ne3 {[%emt 0:00:00]} Nd4 {[%emt 0:01:20]} 46. Rc4 {
[%emt 0:00:00]} Nb5 {[%emt 0:05:39]} 47. Rc5 {[%emt 0:00:00]} Nd6 {[%emt 0:01:
07]} 48. Rc6 {[%emt 0:00:00]} Ne4 {[%emt 0:00:03]} 49. Rc4 {[%emt 0:00:00]} Nd6
{[%emt 0:00:12]} 50. Rc7 {[%emt 0:00:00]} Bd4 {[%emt 0:01:32]} 51. Nc2 {
[%emt 0:00:04]} Be5 {[%emt 0:00:28]} 52. Re7 {[%emt 0:00:24]} Bf6 {[%emt 0:01:
01]} 53. Rd7 {[%emt 0:00:17]} Be5 {[%emt 0:01:12]} 54. g3 {[%emt 0:00:32]} Ne4
{[%emt 0:01:34]} 55. Rxf7 {[%emt 0:00:20]} Bd6 {[%emt 0:01:30]} 56. Rf5 {
[%emt 0:00:55]} Nf6 {[%emt 0:01:20]} 57. Kf1 {[%emt 0:00:22]} Kg8 {[%emt 0:00:
40]} 58. Ke2 {[%emt 0:01:07]} Kf7 {[%emt 0:00:01]} 59. Kd3 {[%emt 0:01:47]} g6
{[%emt 0:00:02]} 60. hxg6+ {[%emt 0:00:14]} Kxg6 {[%emt 0:00:02]} 61. Ra5 {
[%emt 0:00:21]} Bc7 {[%emt 0:00:49]} 62. Ra6 {[%emt 0:00:26]} Bd8 {[%emt 0:01:
42]} 63. Nd4 {[%emt 0:01:04]} Bc7 {[%emt 0:00:49]} 64. Nb5 {[%emt 0:02:00]} Bd8
{[%emt 0:00:10]} 65. Nd6 {[%emt 0:00:23]} Be7 {[%emt 0:00:31]} 66. Ne4 {
[%emt 0:00:44]} Kf5 {[%emt 0:00:34]} 67. Nxf6 {[%emt 0:00:23]} Bxf6 {[%emt 0:
00:26]} 68. g4+ {[%emt 0:00:05]} Kg6 {[%emt 0:00:47]} 69. f4 {[%emt 0:00:13]}
Kg7 {[%emt 0:00:13]} 70. Rc6 {[%emt 0:00:08]} Kg6 {[%emt 0:00:15]} 71. Ke4 {
[%emt 0:00:08]} Kg7 {[%emt 0:00:14]} 72. Kf5 {[%emt 0:00:15]} Bd4 {[%emt 0:00:
11]} 73. Rc4 {[%emt 0:00:09]} 1-0

[Event "23rd ETCC Women 2021"]
[Site "Catez"]
[Date "2021.11.20"]
[Round "8.18"]
[White "Peptan, Corina-Isabela"]
[Black "Guichard, Pauline"]
[Result "1/2-1/2"]
[ECO "A13"]
[WhiteElo "2385"]
[BlackElo "2409"]
[Annotator "NA"]
[PlyCount "128"]
[EventDate "2021.11.08"]
[EventType "team-tourn"]
[EventCountry "SLO"]
[SourceTitle "playchess.com"]
[Source "ChessBase"]
[SourceQuality "1"]
[WhiteTeam "Romania"]
[BlackTeam "France"]
[WhiteTeamCountry "ROU"]
[BlackTeamCountry "FRA"]
[TimeControl "40/5400+30:1800+30"]

1. c4 {[%emt 0:00:03]} Nf6 {[%emt 0:00:11]} 2. Nf3 {[%emt 0:00:43]} e6 {
[%emt 0:00:10]} 3. e3 {[%emt 0:00:22]} d5 {[%emt 0:00:15]} 4. b3 {[%emt 0:00:
08]} Bd6 {[%emt 0:05:43]} 5. Bb2 {[%emt 0:00:14]} b6 {[%emt 0:00:43]} 6. Nc3 {
[%emt 0:00:36]} Bb7 {[%emt 0:01:57]} 7. cxd5 {[%emt 0:15:18]} exd5 {[%emt 0:03:
01]} 8. Nb5 {[%emt 0:00:20]} Be7 {[%emt 0:03:42]} 9. Be5 {[%emt 0:03:30]} Na6 {
[%emt 0:00:20]} 10. Rc1 {[%emt 0:17:53]} c5 {[%emt 0:00:13]} 11. a3 {[%emt 0:
00:09]} O-O {[%emt 0:02:54]} 12. Be2 {[%emt 0:00:06]} Ne8 {[%emt 0:05:16]} 13.
d4 {[%emt 0:07:54]} Nac7 {[%emt 0:03:17]} 14. Nxc7 {[%emt 0:00:18]} Nxc7 {
[%emt 0:00:04]} 15. O-O {[%emt 0:00:08]} Ne6 {[%emt 0:01:10]} 16. a4 {[%emt 0:
01:13]} Rc8 {[%emt 0:07:50]} 17. Qd2 {[%emt 0:03:10]} Bd6 {[%emt 0:03:11]} 18.
Rfd1 {[%emt 0:17:14]} Qe7 {[%emt 0:03:08]} 19. Bxd6 {[%emt 0:07:12]} Qxd6 {
[%emt 0:00:07]} 20. a5 {[%emt 0:05:43]} Rfd8 {[%emt 0:03:21]} 21. axb6 {
[%emt 0:07:26]} axb6 {[%emt 0:02:45]} 22. Qb2 {[%emt 0:00:29]} Ra8 {[%emt 0:11:
03]} 23. h3 {[%emt 0:02:11]} h6 {[%emt 0:01:50]} 24. Rc2 {[%emt 0:04:12]} Ra7 {
[%emt 0:09:18]} 25. dxc5 {[%emt 0:05:32]} bxc5 {[%emt 0:00:41]} 26. Rcd2 {
[%emt 0:00:17]} Qb6 {[%emt 0:03:17]} 27. Ne5 {[%emt 0:00:15]} Ba8 {[%emt 0:11:
42]} 28. Bf3 {[%emt 0:00:58]} d4 {[%emt 0:03:25]} 29. Nc4 {[%emt 0:00:04]} Qb5
{[%emt 0:06:49]} 30. Bg4 {[%emt 0:00:15]} Qc6 {[%emt 0:03:01]} 31. Bf3 {
[%emt 0:00:48]} Qe8 {[%emt 0:01:36]} 32. Bxa8 {[%emt 0:00:51]} Raxa8 {[%emt 0:
00:41]} 33. Qb1 {[%emt 0:00:21]} Qb5 {[%emt 0:00:36]} 34. Qc2 {[%emt 0:00:45]}
Ra6 {[%emt 0:02:07]} 35. Rd3 {[%emt 0:00:42]} Rda8 {[%emt 0:00:20]} 36. Qe2 {
[%emt 0:00:08]} Ra1 {[%emt 0:01:12]} 37. Rxa1 {[%emt 0:00:17]} Rxa1+ {[%emt 0:
00:04]} 38. Rd1 {[%emt 0:00:24]} Ra7 {[%emt 0:00:34]} 39. Rd3 {[%emt 0:00:50]}
Ra1+ {[%emt 0:00:18]} 40. Rd1 {[%emt 0:00:05]} Ra7 {[%emt 0:00:07]} 41. Rd3 {
[%emt 0:30:28]} Qb8 {[%emt 0:31:34]} 42. Qc2 {[%emt 0:00:00]} Qa8 {[%emt 0:00:
00]} 43. Rd1 {[%emt 0:00:00]} Ra2 {[%emt 0:00:00]} 44. Qf5 {[%emt 0:00:00]} Qb7
{[%emt 0:00:00]} 45. Qb1 {[%emt 0:00:00]} Ra6 {[%emt 0:00:00]} 46. Qd3 {
[%emt 0:00:00]} Ra2 {[%emt 0:00:00]} 47. Qb1 {[%emt 0:00:00]} Ra8 {[%emt 0:00:
00]} 48. Qc2 {[%emt 0:00:00]} Rb8 {[%emt 0:00:00]} 49. Rd3 {[%emt 0:00:00]} Qe4
{[%emt 0:00:00]} 50. Qd1 {[%emt 0:00:00]} h5 {[%emt 0:00:00]} 51. Nb2 {[%emt 0:
00:00]} Qg6 {[%emt 0:00:00]} 52. Nc4 {[%emt 0:00:00]} Ra8 {[%emt 0:00:00]} 53.
Ne5 {[%emt 0:00:18]} Qe4 {[%emt 0:00:00]} 54. Nf3 {[%emt 0:03:10]} Ra2 {
[%emt 0:00:00]} 55. Rd2 {[%emt 0:02:49]} Rxd2 {[%emt 0:00:00]} 56. Nxd2 {
[%emt 0:00:11]} Qd3 {[%emt 0:00:00]} 57. Qe1 {[%emt 0:00:19]} Qc3 {[%emt 0:00:
03]} 58. Nf3 {[%emt 0:01:29]} Qb2 {[%emt 0:04:58]} 59. exd4 {[%emt 0:00:36]}
cxd4 {[%emt 0:00:05]} 60. Qd2 {[%emt 0:01:04]} Qb1+ {[%emt 0:02:44]} 61. Kh2 {
[%emt 0:00:14]} d3 {[%emt 0:01:20]} 62. Ne5 {[%emt 0:00:48]} Qxb3 {[%emt 0:01:
50]} 63. Nxd3 {[%emt 0:00:24]} Qd5 {[%emt 0:00:13]} 64. Qe3 {[%emt 0:00:14]}
Qd6+ {[%emt 0:00:05]} 1/2-1/2

[Event "23rd ETCC Women 2021"]
[Site "Catez"]
[Date "2021.11.20"]
[Round "8.20"]
[White "Sandu, Mihaela"]
[Black "Navrotescu, Andreea"]
[Result "1-0"]
[ECO "B40"]
[WhiteElo "2244"]
[BlackElo "2210"]
[Annotator "NA"]
[PlyCount "81"]
[EventDate "2021.11.08"]
[EventType "team-tourn"]
[EventCountry "SLO"]
[SourceTitle "playchess.com"]
[Source "ChessBase"]
[SourceQuality "1"]
[WhiteTeam "Romania"]
[BlackTeam "France"]
[WhiteTeamCountry "ROU"]
[BlackTeamCountry "FRA"]
[TimeControl "40/5400+30:1800+30"]

1. e4 {[%emt 0:00:03]} e6 {[%emt 0:00:04]} 2. d3 {[%emt 0:00:43]} d5 {[%emt 0:
00:34]} 3. Nd2 {[%emt 0:00:09]} Nf6 {[%emt 0:00:38]} 4. Ngf3 {[%emt 0:00:06]}
c5 {[%emt 0:03:58]} 5. Be2 {[%emt 0:00:14]} Nc6 {[%emt 0:00:50]} 6. c3 {
[%emt 0:00:20]} Be7 {[%emt 0:04:26]} 7. O-O {[%emt 0:02:01]} O-O {[%emt 0:00:
15]} 8. Re1 {[%emt 0:00:18]} Qc7 {[%emt 0:11:30]} 9. Qc2 {[%emt 0:01:39]} b6 {
[%emt 0:09:50]} 10. Nf1 {[%emt 0:01:08]} Bb7 {[%emt 0:03:25]} 11. Ng3 {[%emt 0:
07:57]} Rfd8 {[%emt 0:03:13]} 12. Bf1 {[%emt 0:03:10]} Rac8 {[%emt 0:04:21]}
13. Bg5 {[%emt 0:10:29]} h6 {[%emt 0:01:37]} 14. Bd2 {[%emt 0:02:59]} b5 {
[%emt 0:12:17]} 15. Qc1 {[%emt 0:05:17]} dxe4 {[%emt 0:05:14]} 16. Nxe4 {
[%emt 0:10:45]} Ne5 {[%emt 0:08:40]} 17. Nxe5 {[%emt 0:04:01]} Qxe5 {[%emt 0:
02:06]} 18. Bf4 {[%emt 0:00:28]} Qf5 {[%emt 0:01:49]} 19. Ng3 {[%emt 0:02:12]}
Qg6 {[%emt 0:00:34]} 20. a4 {[%emt 0:11:21]} b4 {[%emt 0:00:33]} 21. cxb4 {
[%emt 0:00:27]} cxb4 {[%emt 0:00:14]} 22. Qd2 {[%emt 0:00:17]} Nd5 {[%emt 0:00:
55]} 23. Be5 {[%emt 0:00:36]} a5 {[%emt 0:06:05]} 24. Rac1 {[%emt 0:02:10]} f6
{[%emt 0:01:12]} 25. Bd4 {[%emt 0:00:49]} e5 {[%emt 0:00:11]} 26. Ba7 {[%emt 0:
01:01]} Nf4 {[%emt 0:14:40]} 27. Rxc8 {[%emt 0:00:43]} Rxc8 {[%emt 0:01:07]}
28. Rc1 {[%emt 0:01:12]} Qe8 {[%emt 0:01:50]} 29. d4 {[%emt 0:02:46]} Qxa4 {
[%emt 0:00:51]} 30. dxe5 {[%emt 0:00:34]} fxe5 {[%emt 0:00:29]} 31. Nf5 {
[%emt 0:00:55]} Bf8 {[%emt 0:00:31]} 32. g3 {[%emt 0:01:46]} Ng6 {[%emt 0:01:
01]} 33. Rxc8 {[%emt 0:00:44]} Bxc8 {[%emt 0:00:01]} 34. Bc4+ {[%emt 0:00:21]}
Kh7 {[%emt 0:00:45]} 35. Qd5 {[%emt 0:00:30]} Qa1+ {[%emt 0:01:15]} 36. Kg2 {
[%emt 0:00:17]} Nh8 {[%emt 0:00:51]} 37. Qg8+ {[%emt 0:00:44]} Kg6 {[%emt 0:00:
01]} 38. Nh4+ {[%emt 0:00:10]} Kh5 {[%emt 0:00:50]} 39. Be2+ {[%emt 0:00:17]}
Bg4 {[%emt 0:00:45]} 40. Bxg4+ {[%emt 0:00:13]} Kxg4 {[%emt 0:00:02]} 41. Qxf8
{[%emt 0:30:09]} 1-0

[Event "23rd ETCC Women 2021"]
[Site "Catez"]
[Date "2021.11.20"]
[Round "8.21"]
[White "Zaksaite, Salomeja"]
[Black "Danielian, Elina"]
[Result "0-1"]
[ECO "B06"]
[WhiteElo "2250"]
[BlackElo "2450"]
[Annotator "ChessBase"]
[PlyCount "120"]
[EventDate "2021.11.08"]
[EventType "team-tourn"]
[EventCountry "SLO"]
[SourceTitle "playchess.com"]
[Source "ChessBase"]
[SourceQuality "1"]
[WhiteTeam "Lithuania"]
[BlackTeam "Armenia"]
[WhiteTeamCountry "LTU"]
[BlackTeamCountry "ARM"]
[TimeControl "40/5400+30:1800+30"]

1. e4 {[%emt 0:00:10]} d6 {[%emt 0:00:05]} 2. d4 {[%emt 0:00:29]} g6 {[%emt 0:
00:06]} 3. Be3 {[%emt 0:03:50]} Bg7 {[%emt 0:03:05]} 4. Nc3 {[%emt 0:01:26]} a6
{[%emt 0:00:05]} 5. Qd2 {[%emt 0:00:09]} Nd7 {[%emt 0:01:32]} 6. Nf3 {[%emt 0:
02:32]} b5 {[%emt 0:00:36]} 7. a4 {[%emt 0:08:10]} b4 {[%emt 0:01:02]} 8. Nd5 {
[%emt 0:00:05]} a5 {[%emt 0:00:55]} 9. c3 {[%emt 0:00:52]} e6 {[%emt 0:07:52]}
10. Nf4 {[%emt 0:01:58]} bxc3 {[%emt 0:07:40]} 11. Qxc3 {[%emt 0:04:46]} Bb7 {
[%emt 0:01:38]} 12. Qc2 {[%emt 0:03:48]} Ne7 {[%emt 0:04:25]} 13. Bd3 {[%emt 0:
03:45]} O-O {[%emt 0:00:17]} 14. O-O {[%emt 0:00:41]} Nc6 {[%emt 0:00:37]} 15.
Rfc1 {[%emt 0:11:29]} Nb4 {[%emt 0:08:54]} 16. Qxc7 {[%emt 0:01:36]} Nxd3 {
[%emt 0:01:28]} 17. Nxd3 {[%emt 0:00:38]} Bxe4 {[%emt 0:00:05]} 18. Nfe1 {
[%emt 0:00:06]} Nb6 {[%emt 0:01:19]} 19. b4 {[%emt 0:19:46]} Qxc7 {[%emt 0:11:
08]} 20. Rxc7 {[%emt 0:00:03]} axb4 {[%emt 0:04:34]} 21. Nxb4 {[%emt 0:00:05]}
Nxa4 {[%emt 0:02:26]} 22. f3 {[%emt 0:00:30]} Nb6 {[%emt 0:01:31]} 23. Rxa8 {
[%emt 0:01:00]} Bxa8 {[%emt 0:00:07]} 24. Nec2 {[%emt 0:07:05]} h6 {[%emt 0:08:
01]} 25. Bf4 {[%emt 0:01:41]} Rd8 {[%emt 0:00:49]} 26. Nc6 {[%emt 0:04:53]}
Bxc6 {[%emt 0:00:05]} 27. Rxc6 {[%emt 0:00:02]} Nc8 {[%emt 0:00:04]} 28. h4 {
[%emt 0:01:59]} d5 {[%emt 0:02:43]} 29. g4 {[%emt 0:06:40]} Na7 {[%emt 0:01:02]
} 30. Rc5 {[%emt 0:02:00]} Bf8 {[%emt 0:01:10]} 31. Rc7 {[%emt 0:05:20]} Nb5 {
[%emt 0:00:40]} 32. Rc6 {[%emt 0:00:06]} Bg7 {[%emt 0:02:43]} 33. Be3 {[%emt 0:
01:37]} h5 {[%emt 0:00:54]} 34. Kf2 {[%emt 0:02:41]} Bf6 {[%emt 0:05:08]} 35.
Kg3 {[%emt 0:00:03]} hxg4 {[%emt 0:00:47]} 36. Kxg4 {[%emt 0:01:27]} Nd6 {
[%emt 0:04:15]} 37. Bg5 {[%emt 0:01:27]} Kg7 {[%emt 0:02:06]} 38. Ne3 {[%emt 0:
02:08]} Nb5 {[%emt 0:01:18]} 39. Nc2 {[%emt 0:00:29]} Ra8 {[%emt 0:00:21]} 40.
Bxf6+ {[%emt 0:02:19]} Kxf6 {[%emt 0:00:05]} 41. Kf4 {[%emt 0:00:50]} Ra4 {
[%emt 0:01:01]} 42. Ke3 {[%emt 0:00:05]} Rc4 {[%emt 0:17:47]} 43. Rxc4 {
[%emt 0:01:33]} dxc4 {[%emt 0:00:04]} 44. Ke4 {[%emt 0:07:18]} Nd6+ {[%emt 0:
02:01]} 45. Kf4 {[%emt 0:00:10]} Nf5 {[%emt 0:00:23]} 46. Kg4 {[%emt 0:00:04]}
Ke7 {[%emt 0:18:57]} 47. h5 {[%emt 0:07:01]} gxh5+ {[%emt 0:00:04]} 48. Kxh5 {
[%emt 0:00:00]} Kd6 {[%emt 0:00:07]} 49. Kg5 {[%emt 0:00:10]} Kd5 {[%emt 0:00:
13]} 50. Kf6 {[%emt 0:00:11]} c3 {[%emt 0:01:03]} 51. Kxf7 {[%emt 0:04:27]}
Nxd4 {[%emt 0:00:05]} 52. Ne3+ {[%emt 0:04:57]} Ke5 {[%emt 0:00:20]} 53. Nd1 {
[%emt 0:07:31]} c2 {[%emt 0:00:11]} 54. Nb2 {[%emt 0:00:09]} Nxf3 {[%emt 0:02:
04]} 55. Nd3+ {[%emt 0:00:29]} Kd4 {[%emt 0:03:42]} 56. Nc1 {[%emt 0:00:20]} e5
{[%emt 0:00:05]} 57. Kf6 {[%emt 0:00:04]} e4 {[%emt 0:00:28]} 58. Kf5 {[%emt 0:
00:11]} Ne1 {[%emt 0:00:16]} 59. Nb3+ {[%emt 0:02:57]} Ke3 {[%emt 0:00:20]} 60.
Nc1 {[%emt 0:00:53]} Nd3 {[%emt 0:00:09]} 0-1

[Event "23rd ETCC Women 2021"]
[Site "Catez"]
[Date "2021.11.20"]
[Round "8.22"]
[White "Mkrtchian, Lilit"]
[Black "Baginskaite, Kamile"]
[Result "1/2-1/2"]
[ECO "A29"]
[WhiteElo "2379"]
[BlackElo "2100"]
[Annotator "NA"]
[PlyCount "102"]
[EventDate "2021.11.08"]
[EventType "team-tourn"]
[EventCountry "SLO"]
[SourceTitle "playchess.com"]
[Source "ChessBase"]
[SourceQuality "1"]
[WhiteTeam "Armenia"]
[BlackTeam "Lithuania"]
[WhiteTeamCountry "ARM"]
[BlackTeamCountry "LTU"]
[TimeControl "40/5400+30:1800+30"]

1. c4 {[%emt 0:00:13]} e5 {[%emt 0:00:26]} 2. Nc3 {[%emt 0:00:40]} Nf6 {
[%emt 0:00:34]} 3. Nf3 {[%emt 0:00:18]} Nc6 {[%emt 0:00:47]} 4. g3 {[%emt 0:00:
12]} d5 {[%emt 0:02:12]} 5. cxd5 {[%emt 0:00:08]} Nxd5 {[%emt 0:00:03]} 6. Bg2
{[%emt 0:00:06]} Nb6 {[%emt 0:00:48]} 7. a3 {[%emt 0:00:11]} a5 {[%emt 0:00:51]
} 8. d3 {[%emt 0:00:55]} Be7 {[%emt 0:05:04]} 9. O-O {[%emt 0:00:08]} O-O {
[%emt 0:00:05]} 10. Be3 {[%emt 0:00:05]} Be6 {[%emt 0:00:18]} 11. Na4 {[%emt 0:
00:28]} Nd5 {[%emt 0:04:33]} 12. Bc5 {[%emt 0:00:43]} b6 {[%emt 0:00:29]} 13.
Bxe7 {[%emt 0:00:24]} Ndxe7 {[%emt 0:00:12]} 14. b4 {[%emt 0:23:12]} axb4 {
[%emt 0:29:33]} 15. axb4 {[%emt 0:00:05]} Ra7 {[%emt 0:00:45]} 16. b5 {[%emt 0:
07:57]} Nd4 {[%emt 0:00:21]} 17. Nc3 {[%emt 0:00:34]} Rxa1 {[%emt 0:02:00]} 18.
Qxa1 {[%emt 0:00:06]} f6 {[%emt 0:00:14]} 19. Nxd4 {[%emt 0:02:38]} Qxd4 {
[%emt 0:18:42]} 20. Rc1 {[%emt 0:13:08]} Rd8 {[%emt 0:00:43]} 21. Qa7 {[%emt 0:
02:50]} Qc5 {[%emt 0:04:44]} 22. Qa1 {[%emt 0:07:54]} Qd4 {[%emt 0:03:25]} 23.
Qa3 {[%emt 0:06:30]} Qd6 {[%emt 0:01:27]} 24. Qxd6 {[%emt 0:06:17]} cxd6 {
[%emt 0:07:40]} 25. Na4 {[%emt 0:01:02]} Rc8 {[%emt 0:00:09]} 26. Rb1 {[%emt 0:
15:56]} Rb8 {[%emt 0:00:36]} 27. Kf1 {[%emt 0:00:45]} d5 {[%emt 0:01:41]} 28.
Ke1 {[%emt 0:02:09]} Kf7 {[%emt 0:00:40]} 29. Rc1 {[%emt 0:00:36]} Rc8 {
[%emt 0:02:36]} 30. Rb1 {[%emt 0:00:03]} Rb8 {[%emt 0:00:22]} 31. e3 {[%emt 0:
04:40]} Bd7 {[%emt 0:02:21]} 32. Kd2 {[%emt 0:00:20]} Ke6 {[%emt 0:00:53]} 33.
Rb2 {[%emt 0:03:58]} Kd6 {[%emt 0:00:23]} 34. Kc3 {[%emt 0:00:16]} Nc8 {
[%emt 0:02:35]} 35. Kb4 {[%emt 0:01:56]} Ra8 {[%emt 0:00:32]} 36. Nc3 {[%emt 0:
00:20]} Ne7 {[%emt 0:00:42]} 37. Ra2 {[%emt 0:00:33]} Rxa2 {[%emt 0:02:55]} 38.
Nxa2 {[%emt 0:00:00]} d4 {[%emt 0:00:41]} 39. exd4 {[%emt 0:00:33]} exd4 {
[%emt 0:00:05]} 40. Nc1 {[%emt 0:00:09]} Nd5+ {[%emt 0:01:01]} 41. Kc4 {
[%emt 0:11:01]} Nc7 {[%emt 0:01:27]} 42. Kxd4 {[%emt 0:00:47]} Nxb5+ {[%emt 0:
01:07]} 43. Kc4 {[%emt 0:00:06]} Nc7 {[%emt 0:01:29]} 44. Ne2 {[%emt 0:00:59]}
Bb5+ {[%emt 0:01:01]} 45. Kc3 {[%emt 0:02:24]} Ne6 {[%emt 0:03:46]} 46. h4 {
[%emt 0:02:44]} g5 {[%emt 0:03:49]} 47. Be4 {[%emt 0:03:25]} h6 {[%emt 0:00:40]
} 48. Bf5 {[%emt 0:08:17]} Be8 {[%emt 0:01:09]} 49. hxg5 {[%emt 0:05:06]} fxg5
{[%emt 0:01:40]} 50. g4 {[%emt 0:01:06]} Ke5 {[%emt 0:04:45]} 51. d4+ {[%emt 0:
00:10]} Kd5 {[%emt 0:00:16]} 1/2-1/2